Workbook

Sheet About
B3: FlowProfile v2.0
B5: 2015-03-02
B7: Hydraulic Modelling of Flow Profiles
B9: 1D Calculation of section averaged depths and velocities through a system of channel and structure elements, based on a combination of Gradually Varied Flow and Rapidly Varied Flow calculations. Can be used to model multi-slope culverts and constrictive bridge openings.
B15: Update History:
B16: Apr. 7, 2009 - creation of first trial version
B17: Sep 25, 2009 - fix bug in ellipse geometry routine
B18: Mar 8, 2010 - fix bug in friction slope calculation using AT equation
B19: Apr 16, 2010 - fix bug in normal depth calculation when max flow exceeded
B20: Dec 29, 2010 - mod mean depth ("R") for trapezoidal channels with Y > h, add def. chan length
B21: Dec 30, 2010 - add Bridge XS Plot, fix default BC input
B22: Jan 4, 2011 - fix bug for Ynorm in adverse slope
B23: Mar 3, 2011 - fix bug in top profile for trapezoidal channel
B24: May 25, 2011 - fix bug in top profile for Full-M2 profile
B25: Mar 25, 2012 - add substrate option for culverts to facilitate fish passage analysis
B26: Mar 1, 2015 - change upper bound for solutions in trapezoidal channels in extreme flows
B27: Mar 2, 2015 - add percent flow input to facilitate iterative analysis for multiple parallel culverts
B28: Mar 2, 2015 - options moved to separate Tab (from Instructions Tab)

Sheet Options
A10: Options
A12: Loss Coefficient
A13: Contraction | B13: 0.3
A14: Expansion | B14: 0.5
A16: Default Roughness Coefficient
A17: Arch | B17: 0.013
A18: Box | B18: 0.013
A19: Ellipse | B19: 0.028
A20: Round | B20: 0.028
A21: Trapezoid
A23: #Pts per Element | B23: 31
A24: Default Channel Length (m) | B24: 50

Sheet Instructions
A2: Data Entry | B2: 1 | C2: Enter options such as expansion/contraction loss coefficients and roughness coefficients on "Options" sheet. Enter channel/structure geometry data on "Input" screen. Enter boundary condition (Q, d/s depth) on "Input" sheet.
B3: 1a | C3: Alternatively, fill in data on the Templates sheet for a channel and a bridge or culvert, and the necessary data will be filled in on the "Input" sheet. This data can be customized before running the hydraulic analysis.
A5: Run | B5: 2 | C5: Click the "Run" button on the "Input" sheet to perform the hydraulic analysis and display results.
A7: Output | B7: 3 | C7: A summary of the results can be seen on the ""Results" sheet. Detailed profile data can be seen on the "Profile" sheet. A plot of the results can be seen on the "Plot" sheet.
A9: Multiple Parallel Culverts | B9: Opt | C9: Enter a % flow value for the culvert being analysed (between 0 and 100). Note the energy grade line value (E ) at the d/s section of the u/s transition element. Do this for all other parallel culverts at the crossing - separate analysis files. Do again (iteratively), varying % flow for each culvert until the sum of % flow = 100 and the E value at the d/s end of the u/s transition is the same for all culverts. Note: Use 50% for 2 pipes of the same configuration (no need for iteration)

Sheet Templates
A2: Typical Channel | D2: Single Culvert | G2: Bridge
A4: B | B4: 3 | D4: Shape | E4: R | G4: B | H4: 8 | AA4: =-1.5*B6/2 -> -4.5 | AB4: =B8+B5 -> 101.2 | AD4: =AD5-H5*(B5+1) -> -8.4 | AE4: =AE5+B5+1 -> 102.2
A5: h | B5: 1.2 | D5: Rise | E5: 2.4 | G5: m | H5: 2 | AA5: =-1*B6/2 -> -3 | AB5: =AB4 -> 101.2 | AD5: =-1*H4/2 -> -4 | AE5: =B8 -> 100
A6: T | B6: 6 | D6: Span | G6: W | H6: 20 | AA6: =-B4/2 -> -1.5 | AB6: =B8 -> 100 | AD6: =-1*AD5 -> 4 | AE6: =AE5 -> 100
A7: S | B7: 0.005 | D7: Length | E7: 32 | AA7: =-1*AA6 -> 1.5 | AB7: =AB6 -> 100 | AD7: =-1*AD4 -> 8.4 | AE7: =AE4 -> 102.2
A8: Elev | B8: 100 | D8: Burial | E8: =IF(E5<4,E5/4,1) -> 0.6 | AA8: =-1*AA5 -> 3 | AB8: =AB5 -> 101.2
D9: Ltrans | E9: 12 | AA9: =-1*AA4 -> 4.5 | AB9: =AB8 -> 101.2

Sheet Input
B1: Boundary Conditions
B2: Q (cms) | C2: 8
B3: D/S BC Type
A5: No. | B5: Section Description | C5: U/S Elev | D5: D/S Elev | E5: Length | F5: Shape | G5: Rise / h | H5: Span / B | I5: T | J5: n | K5: Substrate | L5: n used | M5: S | N5: % Flow
A6: 1 | B6: D/S Channel | C6: 100 | D6: 99.75 | E6: 50 | F6: T | G6: 1.2 | H6: 3 | I6: 6 | L6: 0.0549999997 | M6: =IF(C6<>"",(C6-D6)/E6,"") -> 0.005
A7: 2 | B7: D/S Transition | C7: 99.46 | D7: 100 | E7: 12 | F7: T | G7: 1.2 | H7: 3 | I7: 6 | J7: 0.05 | L7: 0.05000000075 | M7: -0.045
A8: 3 | B8: Culvert | C8: 99.62 | D8: 99.46 | E8: 32 | F8: R | G8: 2.4 | L8: 0.02800000086 | M8: 0.005 | N8: 100
A9: 4 | B9: U/S Transition | C9: 100.28 | D9: 99.62 | E9: 12 | F9: T | G9: 1.2 | H9: 3 | I9: 6 | J9: 0.05 | L9: 0.05000000075 | M9: 0.055
A10: 5 | B10: U/S Channel | C10: 100.53 | D10: 100.28 | E10: 50 | F10: T | G10: 1.2 | H10: 3 | I10: 6 | L10: 0.0549999997 | M10: 0.005

Sheet Results
F1: U/S | I1: D/S
A2: Element | B2: Description | C2: Yn | D2: Yc | E2: Profile | F2: Y | G2: V | H2: E | I2: Y | J2: V | K2: E
A3: 1 | B3: D/S Channel | C3: 1.367988825 | D3: 0.7993330956 | E3: Normal | F3: 1.367988825 | G3: 1.248452544 | H3: 101.447464 | I3: 1.367988825 | J3: 1.248452544 | K3: 101.197464
A4: 2 | B4: D/S Transition | C4: 0 | D4: 0.7993330956 | E4: A2 | F4: 1.977650285 | G4: 0.7947624326 | H4: 101.4698563 | I4: 1.368275404 | J4: 1.248117685 | K4: 101.4477081
A5: 3 | B5: Culvert | C5: 1.934052467 | D5: 1.299189329 | E5: M2 | F5: 1.851919651 | G5: 2.135742426 | H5: 101.7045059 | I5: 1.817075729 | J5: 2.176991701 | K5: 101.5187302
A6: 4 | B6: U/S Transition | C6: 0.6903168559 | D6: 0.7993330956 | E6: S1 | F6: 1.399148107 | G6: 1.213060617 | H6: 101.7541809 | I6: 2.085881233 | J6: 0.7465968728 | K6: 101.7343063
A7: 5 | B7: U/S Channel | C7: 1.367988825 | D7: 0.7993330956 | E7: M1 | F7: 1.387485981 | G7: 1.22606945 | H7: 101.994133 | I7: 1.399260759 | J7: 1.212936401 | K7: 101.7542801

Sheet Profile
A1: Element | B1: Station | C1: X | D1: Y | E1: V | F1: Invert | G1: Crown | H1: WL | I1: EGL
B2: (m) | C2: (m) | D2: (m) | E2: (m/s) | F2: (m) | G2: (m) | H2: (m) | I2: (m)
A3: 1 | B3: 0 | C3: 0 | D3: 1.367988825 | E3: 1.248452544 | F3: 99.75 | G3: 100.9499969 | H3: 101.1179886 | I3: 101.197464
A4: 1 | B4: 1.666666627 | C4: 1.666666627 | D4: 1.367988825 | E4: 1.248452544 | F4: 99.7583313 | G4: 100.9583359 | H4: 101.1263199 | I4: 101.2057953
A5: 1 | B5: 3.333333254 | C5: 3.333333254 | D5: 1.367988825 | E5: 1.248452544 | F5: 99.76667023 | G5: 100.9666672 | H5: 101.1346588 | I5: 101.2141342
A6: 1 | B6: 5 | C6: 5 | D6: 1.367988825 | E6: 1.248452544 | F6: 99.77500153 | G6: 100.9749985 | H6: 101.1429901 | I6: 101.2224655
A7: 1 | B7: 6.666666508 | C7: 6.666666508 | D7: 1.367988825 | E7: 1.248452544 | F7: 99.78333282 | G7: 100.9833298 | H7: 101.1513214 | I7: 101.2307968
A8: 1 | B8: 8.333333015 | C8: 8.333333015 | D8: 1.367988825 | E8: 1.248452544 | F8: 99.79166412 | G8: 100.9916687 | H8: 101.1596527 | I8: 101.2391281
A9: 1 | B9: 10 | C9: 10 | D9: 1.367988825 | E9: 1.248452544 | F9: 99.80000305 | G9: 101 | H9: 101.1679916 | I9: 101.247467
A10: 1 | B10: 11.66666698 | C10: 11.66666698 | D10: 1.367988825 | E10: 1.248452544 | F10: 99.80833435 | G10: 101.0083313 | H10: 101.1763229 | I10: 101.2557983
A11: 1 | B11: 13.33333302 | C11: 13.33333302 | D11: 1.367988825 | E11: 1.248452544 | F11: 99.81666565 | G11: 101.0166702 | H11: 101.1846542 | I11: 101.2641296
A12: 1 | B12: 15 | C12: 15 | D12: 1.367988825 | E12: 1.248452544 | F12: 99.82499695 | G12: 101.0250015 | H12: 101.1929855 | I12: 101.2724609
A13: 1 | B13: 16.66666603 | C13: 16.66666603 | D13: 1.367988825 | E13: 1.248452544 | F13: 99.83333588 | G13: 101.0333328 | H13: 101.2013245 | I13: 101.2807999
A14: 1 | B14: 18.33333397 | C14: 18.33333397 | D14: 1.367988825 | E14: 1.248452544 | F14: 99.84166718 | G14: 101.0416641 | H14: 101.2096558 | I14: 101.2891312
A15: 1 | B15: 20 | C15: 20 | D15: 1.367988825 | E15: 1.248452544 | F15: 99.84999847 | G15: 101.0500031 | H15: 101.2179871 | I15: 101.2974625
A16: 1 | B16: 21.66666603 | C16: 21.66666603 | D16: 1.367988825 | E16: 1.248452544 | F16: 99.85832977 | G16: 101.0583344 | H16: 101.2263184 | I16: 101.3057938
A17: 1 | B17: 23.33333397 | C17: 23.33333397 | D17: 1.367988825 | E17: 1.248452544 | F17: 99.8666687 | G17: 101.0666656 | H17: 101.2346573 | I17: 101.3141327
A18: 1 | B18: 25 | C18: 25 | D18: 1.367988825 | E18: 1.248452544 | F18: 99.875 | G18: 101.0749969 | H18: 101.2429886 | I18: 101.322464
A19: 1 | B19: 26.66666603 | C19: 26.66666603 | D19: 1.367988825 | E19: 1.248452544 | F19: 99.8833313 | G19: 101.0833359 | H19: 101.2513199 | I19: 101.3307953
A20: 1 | B20: 28.33333397 | C20: 28.33333397 | D20: 1.367988825 | E20: 1.248452544 | F20: 99.89167023 | G20: 101.0916672 | H20: 101.2596588 | I20: 101.3391342
A21: 1 | B21: 30 | C21: 30 | D21: 1.367988825 | E21: 1.248452544 | F21: 99.90000153 | G21: 101.0999985 | H21: 101.2679901 | I21: 101.3474655
A22: 1 | B22: 31.66666603 | C22: 31.66666603 | D22: 1.367988825 | E22: 1.248452544 | F22: 99.90833282 | G22: 101.1083298 | H22: 101.2763214 | I22: 101.3557968
A23: 1 | B23: 33.33333206 | C23: 33.33333206 | D23: 1.367988825 | E23: 1.248452544 | F23: 99.91666412 | G23: 101.1166687 | H23: 101.2846527 | I23: 101.3641281
A24: 1 | B24: 35 | C24: 35 | D24: 1.367988825 | E24: 1.248452544 | F24: 99.92500305 | G24: 101.125 | H24: 101.2929916 | I24: 101.372467
A25: 1 | B25: 36.66666794 | C25: 36.66666794 | D25: 1.367988825 | E25: 1.248452544 | F25: 99.93333435 | G25: 101.1333313 | H25: 101.3013229 | I25: 101.3807983
A26: 1 | B26: 38.33333206 | C26: 38.33333206 | D26: 1.367988825 | E26: 1.248452544 | F26: 99.94166565 | G26: 101.1416702 | H26: 101.3096542 | I26: 101.3891296
A27: 1 | B27: 40 | C27: 40 | D27: 1.367988825 | E27: 1.248452544 | F27: 99.94999695 | G27: 101.1500015 | H27: 101.3179855 | I27: 101.3974609
A28: 1 | B28: 41.66666794 | C28: 41.66666794 | D28: 1.367988825 | E28: 1.248452544 | F28: 99.95833588 | G28: 101.1583328 | H28: 101.3263245 | I28: 101.4057999
A29: 1 | B29: 43.33333206 | C29: 43.33333206 | D29: 1.367988825 | E29: 1.248452544 | F29: 99.96666718 | G29: 101.1666641 | H29: 101.3346558 | I29: 101.4141312
A30: 1 | B30: 45 | C30: 45 | D30: 1.367988825 | E30: 1.248452544 | F30: 99.97499847 | G30: 101.1750031 | H30: 101.3429871 | I30: 101.4224625
A31: 1 | B31: 46.66666794 | C31: 46.66666794 | D31: 1.367988825 | E31: 1.248452544 | F31: 99.98332977 | G31: 101.1833344 | H31: 101.3513184 | I31: 101.4307938
A32: 1 | B32: 48.33333206 | C32: 48.33333206 | D32: 1.367988825 | E32: 1.248452544 | F32: 99.9916687 | G32: 101.1916656 | H32: 101.3596573 | I32: 101.4391327
A33: 1 | B33: 50 | C33: 50 | D33: 1.367988825 | E33: 1.248452544 | F33: 100 | G33: 101.1999969 | H33: 101.3679886 | I33: 101.447464
A34: 2 | B34: 50 | C34: 0 | D34: 1.368275404 | E34: 1.248117685 | F34: 100 | G34: 101.1999969 | H34: 101.3682785 | I34: 101.4477081
A35: 2 | B35: 50.40000153 | C35: 0.400000006 | D35: 1.391322255 | E35: 1.221759439 | F35: 99.98200226 | G35: 101.1819992 | H35: 101.3733215 | I35: 101.4494324
A36: 2 | B36: 50.79999924 | C36: 0.8000000119 | D36: 1.413587928 | E36: 1.197331071 | F36: 99.96399689 | G36: 101.1640015 | H36: 101.3775864 | I36: 101.4506836
A37: 2 | B37: 51.20000076 | C37: 1.200000048 | D37: 1.435853601 | E37: 1.173860192 | F37: 99.94599915 | G37: 101.1460037 | H37: 101.3818512 | I37: 101.4521103
A38: 2 | B38: 51.59999847 | C38: 1.600000024 | D38: 1.458119273 | E38: 1.151291966 | F38: 99.9280014 | G38: 101.1279984 | H38: 101.386116 | I38: 101.4537048
A39: 2 | B39: 52 | C39: 2 | D39: 1.479603648 | E39: 1.130323291 | F39: 99.91000366 | G39: 101.1100006 | H39: 101.3896027 | I39: 101.4547501
A40: 2 | B40: 52.40000153 | C40: 2.400000095 | D40: 1.501088023 | E40: 1.11010468 | F40: 99.89199829 | G40: 101.0920029 | H40: 101.3930893 | I40: 101.455925
A41: 2 | B41: 52.79999924 | C41: 2.799999952 | D41: 1.522572398 | E41: 1.090596676 | F41: 99.87400055 | G41: 101.0739975 | H41: 101.3965759 | I41: 101.457222
A42: 2 | B42: 53.20000076 | C42: 3.200000048 | D42: 1.543275476 | E42: 1.072435975 | F42: 99.85600281 | G42: 101.0559998 | H42: 101.3992767 | I42: 101.4579163
A43: 2 | B43: 53.59999847 | C43: 3.599999905 | D43: 1.563978553 | E43: 1.054870248 | F43: 99.83799744 | G43: 101.038002 | H43: 101.4019775 | I43: 101.4587173
A44: 2 | B44: 54 | C44: 4 | D44: 1.58468163 | E44: 1.037870646 | F44: 99.81999969 | G44: 101.0199966 | H44: 101.4046783 | I44: 101.4596024
A45: 2 | B45: 54.40000153 | C45: 4.400000095 | D45: 1.605384707 | E45: 1.021410346 | F45: 99.80200195 | G45: 101.0019989 | H45: 101.4073868 | I45: 101.4605789
A46: 2 | B46: 54.79999924 | C46: 4.800000191 | D46: 1.626087785 | E46: 1.005463839 | F46: 99.78399658 | G46: 100.9840012 | H46: 101.4100876 | I46: 101.4616318
A47: 2 | B47: 55.20000076 | C47: 5.199999809 | D47: 1.646009684 | E47: 0.9905823469 | F47: 99.76599884 | G47: 100.9660034 | H47: 101.4120102 | I47: 101.4620438
A48: 2 | B48: 55.59999847 | C48: 5.599999905 | D48: 1.665931582 | E48: 0.9761348367 | F48: 99.7480011 | G48: 100.947998 | H48: 101.4139328 | I48: 101.4625168
A49: 2 | B49: 56 | C49: 6 | D49: 1.685853481 | E49: 0.9621027112 | F49: 99.72999573 | G49: 100.9300003 | H49: 101.4158554 | I49: 101.4630508
A50: 2 | B50: 56.40000153 | C50: 6.400000095 | D50: 1.70577538 | E50: 0.9484682679 | F50: 99.71199799 | G50: 100.9120026 | H50: 101.417778 | I50: 101.4636459
A51: 2 | B51: 56.79999924 | C51: 6.800000191 | D51: 1.725697279 | E51: 0.9352148771 | F51: 99.69400024 | G51: 100.8939972 | H51: 101.419693 | I51: 101.4642944
A52: 2 | B52: 57.20000076 | C52: 7.199999809 | D52: 1.745619059 | E52: 0.922326982 | F52: 99.6760025 | G52: 100.8759995 | H52: 101.4216156 | I52: 101.4649963
A53: 2 | B53: 57.59999847 | C53: 7.599999905 | D53: 1.765540957 | E53: 0.9097892642 | F53: 99.65799713 | G53: 100.8580017 | H53: 101.4235382 | I53: 101.465744
A54: 2 | B54: 58 | C54: 8 | D54: 1.785462976 | E54: 0.8975877166 | F54: 99.63999939 | G54: 100.8399963 | H54: 101.4254608 | I54: 101.4665451
A55: 2 | B55: 58.40000153 | C55: 8.399999619 | D55: 1.805384874 | E55: 0.8857093453 | F55: 99.62200165 | G55: 100.8219986 | H55: 101.4273834 | I55: 101.4673843
A56: 2 | B56: 58.79999924 | C56: 8.800000191 | D56: 1.824525476 | E56: 0.8745890856 | F56: 99.60399628 | G56: 100.8040009 | H56: 101.4285278 | I56: 101.4675293
A57: 2 | B57: 59.20000076 | C57: 9.199999809 | D57: 1.843666077 | E57: 0.8637446761 | F57: 99.58599854 | G57: 100.7860031 | H57: 101.4296646 | I57: 101.4677048
A58: 2 | B58: 59.59999847 | C58: 9.600000381 | D58: 1.862806678 | E58: 0.8531659245 | F58: 99.56800079 | G58: 100.7679977 | H58: 101.430809 | I58: 101.4679184
A59: 2 | B59: 60 | C59: 10 | D59: 1.881947279 | E59: 0.8428430557 | F59: 99.55000305 | G59: 100.75 | H59: 101.4319458 | I59: 101.4681702
A60: 2 | B60: 60.40000153 | C60: 10.39999962 | D60: 1.90108788 | E60: 0.8327671289 | F60: 99.53199768 | G60: 100.7320023 | H60: 101.4330902 | I60: 101.4684448
A61: 2 | B61: 60.79999924 | C61: 10.80000019 | D61: 1.920228601 | E61: 0.8229292035 | F61: 99.51399994 | G61: 100.7139969 | H61: 101.434227 | I61: 101.4687576
A62: 2 | B62: 61.20000076 | C62: 11.19999981 | D62: 1.939369202 | E62: 0.8133209944 | F62: 99.4960022 | G62: 100.6959991 | H62: 101.4353714 | I62: 101.469101
A63: 2 | B63: 61.59999847 | C63: 11.60000038 | D63: 1.958509803 | E63: 0.8039345145 | F63: 99.47799683 | G63: 100.6780014 | H63: 101.4365082 | I63: 101.4694672
A64: 2 | B64: 62 | C64: 12 | D64: 1.977650285 | E64: 0.7947624326 | F64: 99.45999908 | G64: 100.659996 | H64: 101.4376526 | I64: 101.4698563
A65: 3 | B65: 62 | C65: 0 | D65: 1.817075729 | E65: 2.176991701 | F65: 99.45999908 | G65: 101.8600006 | H65: 101.2770767 | I65: 101.5187302
A66: 3 | B66: 63.06666565 | C66: 1.066666722 | D66: 1.818446517 | E66: 2.175322056 | F66: 99.46533203 | G66: 101.8653336 | H66: 101.2837753 | I66: 101.5250626
A67: 3 | B67: 64.1333313 | C67: 2.133333445 | D67: 1.819801331 | E67: 2.173675776 | F67: 99.47066498 | G67: 101.8706665 | H67: 101.2904663 | I67: 101.5313873
A68: 3 | B68: 65.19999695 | C68: 3.200000048 | D68: 1.821140289 | E68: 2.172052383 | F68: 99.47599792 | G68: 101.8759995 | H68: 101.297142 | I68: 101.5376968
A69: 3 | B69: 66.26667023 | C69: 4.266666889 | D69: 1.822463512 | E69: 2.17045188 | F69: 99.48133087 | G69: 101.8813324 | H69: 101.3037949 | I69: 101.5439987
A70: 3 | B70: 67.33333588 | C70: 5.333333492 | D70: 1.823771238 | E70: 2.168873549 | F70: 99.48666382 | G70: 101.8866653 | H70: 101.3104401 | I70: 101.550293
A71: 3 | B71: 68.40000153 | C71: 6.400000095 | D71: 1.825063705 | E71: 2.167317152 | F71: 99.49199677 | G71: 101.8919983 | H71: 101.3170624 | I71: 101.556572
A72: 3 | B72: 69.46666718 | C72: 7.466666698 | D72: 1.826340914 | E72: 2.165782452 | F72: 99.49732971 | G72: 101.8973312 | H72: 101.3236771 | I72: 101.5628433
A73: 3 | B73: 70.53333282 | C73: 8.533333778 | D73: 1.827603102 | E73: 2.164269209 | F73: 99.50267029 | G73: 101.9026642 | H73: 101.3302689 | I73: 101.5691071
A74: 3 | B74: 71.59999847 | C74: 9.600000381 | D74: 1.828850508 | E74: 2.162776709 | F74: 99.50800323 | G74: 101.9079971 | H74: 101.336853 | I74: 101.5753555
A75: 3 | B75: 72.66666412 | C75: 10.66666698 | D75: 1.83008337 | E75: 2.161304712 | F75: 99.51333618 | G75: 101.9133301 | H75: 101.3434143 | I75: 101.5815964
A76: 3 | B76: 73.7333374 | C76: 11.73333359 | D76: 1.831301808 | E76: 2.159852982 | F76: 99.51866913 | G76: 101.9186707 | H76: 101.349968 | I76: 101.5878296
A77: 3 | B77: 74.80000305 | C77: 12.80000019 | D77: 1.832505822 | E77: 2.158421516 | F77: 99.52400208 | G77: 101.9240036 | H77: 101.3565063 | I77: 101.5940552
A78: 3 | B78: 75.8666687 | C78: 13.86666679 | D78: 1.833695769 | E78: 2.157009602 | F78: 99.52933502 | G78: 101.9293365 | H78: 101.3630295 | I78: 101.6002655
A79: 3 | B79: 76.93333435 | C79: 14.9333334 | D79: 1.834871769 | E79: 2.155617237 | F79: 99.53466797 | G79: 101.9346695 | H79: 101.3695374 | I79: 101.6064682
A80: 3 | B80: 78 | C80: 16 | D80: 1.83603406 | E80: 2.154243708 | F80: 99.54000092 | G80: 101.9400024 | H80: 101.3760376 | I80: 101.6126633
A81: 3 | B81: 79.06666565 | C81: 17.06666756 | D81: 1.83718276 | E81: 2.152888775 | F81: 99.54533386 | G81: 101.9453354 | H81: 101.382515 | I81: 101.6188507
A82: 3 | B82: 80.1333313 | C82: 18.13333321 | D82: 1.838317871 | E82: 2.151552677 | F82: 99.55066681 | G82: 101.9506683 | H82: 101.3889847 | I82: 101.6250229
A83: 3 | B83: 81.19999695 | C83: 19.20000076 | D83: 1.83943975 | E83: 2.150234461 | F83: 99.55599976 | G83: 101.9560013 | H83: 101.3954391 | I83: 101.6311874
A84: 3 | B84: 82.2666626 | C84: 20.26666641 | D84: 1.840548515 | E84: 2.148934364 | F84: 99.5613327 | G84: 101.9613342 | H84: 101.401886 | I84: 101.6373444
A85: 3 | B85: 83.33333588 | C85: 21.33333397 | D85: 1.841644287 | E85: 2.147651911 | F85: 99.56666565 | G85: 101.9666672 | H85: 101.4083099 | I85: 101.6434937
A86: 3 | B86: 84.40000153 | C86: 22.39999962 | D86: 1.842727184 | E86: 2.1463871 | F86: 99.5719986 | G86: 101.9720001 | H86: 101.4147263 | I86: 101.6496353
A87: 3 | B87: 85.46666718 | C87: 23.46666718 | D87: 1.843797445 | E87: 2.145138979 | F87: 99.57733154 | G87: 101.9773331 | H87: 101.4211349 | I87: 101.6557617
A88: 3 | B88: 86.53333282 | C88: 24.53333282 | D88: 1.84485507 | E88: 2.143908024 | F88: 99.58267212 | G88: 101.982666 | H88: 101.4275208 | I88: 101.6618881
A89: 3 | B89: 87.59999847 | C89: 25.60000038 | D89: 1.845900297 | E89: 2.14269352 | F89: 99.58800507 | G89: 101.987999 | H89: 101.4338989 | I89: 101.6679993
A90: 3 | B90: 88.66666412 | C90: 26.66666603 | D90: 1.846933365 | E90: 2.141495466 | F90: 99.59333801 | G90: 101.9933319 | H90: 101.4402695 | I90: 101.6741028
A91: 3 | B91: 89.7333374 | C91: 27.73333359 | D91: 1.847954273 | E91: 2.140313625 | F91: 99.59867096 | G91: 101.9986725 | H91: 101.4466248 | I91: 101.6801987
A92: 3 | B92: 90.80000305 | C92: 28.79999924 | D92: 1.848963261 | E92: 2.13914752 | F92: 99.60400391 | G92: 102.0040054 | H92: 101.4529648 | I92: 101.6862869
A93: 3 | B93: 91.8666687 | C93: 29.86666679 | D93: 1.849960327 | E93: 2.13799715 | F93: 99.60933685 | G93: 102.0093384 | H93: 101.4592972 | I93: 101.6923676
A94: 3 | B94: 92.93333435 | C94: 30.93333244 | D94: 1.850945711 | E94: 2.13686204 | F94: 99.6146698 | G94: 102.0146713 | H94: 101.4656143 | I94: 101.6984406
A95: 3 | B95: 94 | C95: 32 | D95: 1.851919651 | E95: 2.135742426 | F95: 99.62000275 | G95: 102.0200043 | H95: 101.4719238 | I95: 101.7045059
A96: 4 | B96: 94 | C96: 0 | D96: 2.085881233 | E96: 0.7465968728 | F96: 99.62000275 | G96: 100.8199997 | H96: 101.7058868 | I96: 101.7343063
A97: 4 | B97: 94.40000153 | C97: 0.400000006 | D97: 2.063580513 | E97: 0.7560377121 | F97: 99.64200592 | G97: 100.8420029 | H97: 101.7055817 | I97: 101.734726
A98: 4 | B98: 94.80000305 | C98: 0.8000000119 | D98: 2.041048527 | E98: 0.765822053 | F98: 99.66400146 | G98: 100.864006 | H98: 101.7050476 | I98: 101.7349548
A99: 4 | B99: 95.19999695 | C99: 1.200000048 | D99: 2.018311977 | E99: 0.7759553194 | F99: 99.68600464 | G99: 100.8860016 | H99: 101.7043152 | I99: 101.7350159
A100: 4 | B100: 95.59999847 | C100: 1.600000024 | D100: 1.995991707 | E100: 0.7861673832 | F100: 99.70800018 | G100: 100.9080048 | H100: 101.7039948 | I100: 101.7355118
A101: 4 | B101: 96 | C101: 2 | D101: 1.97349596 | E101: 0.7967353463 | F101: 99.73000336 | G101: 100.9300003 | H101: 101.7034988 | I101: 101.7358627
A102: 4 | B102: 96.40000153 | C102: 2.400000095 | D102: 1.950849771 | E102: 0.8076649308 | F102: 99.7519989 | G102: 100.9520035 | H102: 101.7028503 | I102: 101.7361145
A103: 4 | B103: 96.80000305 | C103: 2.799999952 | D103: 1.928077936 | E103: 0.8189616799 | F103: 99.77400208 | G103: 100.973999 | H103: 101.7020798 | I103: 101.7362747
A104: 4 | B104: 97.19999695 | C104: 3.200000048 | D104: 1.905756474 | E104: 0.8303459287 | F104: 99.79600525 | G104: 100.9960022 | H104: 101.7017593 | I104: 101.7369156
A105: 4 | B105: 97.59999847 | C105: 3.599999905 | D105: 1.883336306 | E105: 0.8421037197 | F105: 99.81800079 | G105: 101.0180054 | H105: 101.7013397 | I105: 101.7374954
A106: 4 | B106: 98 | C106: 4 | D106: 1.860841036 | E106: 0.8542403579 | F106: 99.84000397 | G106: 101.0400009 | H106: 101.7008438 | I106: 101.7380524
A107: 4 | B107: 98.40000153 | C107: 4.400000095 | D107: 1.838294268 | E107: 0.8667609692 | F107: 99.86199951 | G107: 101.0620041 | H107: 101.7002945 | I107: 101.7386017
A108: 4 | B108: 98.80000305 | C108: 4.800000191 | D108: 1.815719128 | E108: 0.8796705008 | F108: 99.88400269 | G108: 101.0839996 | H108: 101.6997223 | I108: 101.7391739
A109: 4 | B109: 99.19999695 | C109: 5.199999809 | D109: 1.79338634 | E109: 0.8928254843 | F109: 99.90599823 | G109: 101.1060028 | H109: 101.6993866 | I109: 101.740036
A110: 4 | B110: 99.59999847 | C110: 5.599999905 | D110: 1.770573616 | E110: 0.9066756964 | F110: 99.9280014 | G110: 101.1279984 | H110: 101.6985779 | I110: 101.7404938
A111: 4 | B111: 100 | C111: 6 | D111: 1.747335911 | E111: 0.9212328196 | F111: 99.94999695 | G111: 101.1500015 | H111: 101.6973343 | I111: 101.7406082
A112: 4 | B112: 100.4000015 | C112: 6.400000095 | D112: 1.724654317 | E112: 0.9358995557 | F112: 99.97200012 | G112: 101.1719971 | H112: 101.6966553 | I112: 101.7413177
A113: 4 | B113: 100.8000031 | C113: 6.800000191 | D113: 1.701611757 | E113: 0.9512858391 | F113: 99.9940033 | G113: 101.1940002 | H113: 101.69561 | I113: 101.7417526
A114: 4 | B114: 101.1999969 | C114: 7.199999809 | D114: 1.679142833 | E114: 0.9667841196 | F114: 100.0159988 | G114: 101.2160034 | H114: 101.6951447 | I114: 101.7427979
A115: 4 | B115: 101.5999985 | C115: 7.599999905 | D115: 1.656374335 | E115: 0.9830128551 | F115: 100.038002 | G115: 101.237999 | H115: 101.6943741 | I115: 101.7436447
A116: 4 | B116: 102 | C116: 8 | D116: 1.633358002 | E116: 0.9999815226 | F116: 100.0599976 | G116: 101.2600021 | H116: 101.6933594 | I116: 101.7443466
A117: 4 | B117: 102.4000015 | C117: 8.399999619 | D117: 1.61014533 | E117: 1.017698884 | F117: 100.0820007 | G117: 101.2819977 | H117: 101.6921463 | I117: 101.744957
A118: 4 | B118: 102.8000031 | C118: 8.800000191 | D118: 1.586786866 | E118: 1.036172628 | F118: 100.1039963 | G118: 101.3040009 | H118: 101.6907883 | I118: 101.7455292
A119: 4 | B119: 103.1999969 | C119: 9.199999809 | D119: 1.563332319 | E119: 1.055409789 | F119: 100.1259995 | G119: 101.3259964 | H119: 101.6893311 | I119: 101.7461319
A120: 4 | B120: 103.5999985 | C120: 9.600000381 | D120: 1.539830446 | E120: 1.07541585 | F120: 100.1480026 | G120: 101.3479996 | H120: 101.6878281 | I120: 101.7468033
A121: 4 | B121: 104 | C121: 10 | D121: 1.516328335 | E121: 1.096195221 | F121: 100.1699982 | G121: 101.3700027 | H121: 101.6863251 | I121: 101.7475967
A122: 4 | B122: 104.4000015 | C122: 10.39999962 | D122: 1.492872 | E122: 1.117750525 | F122: 100.1920013 | G122: 101.3919983 | H122: 101.6848679 | I122: 101.7485733
A123: 4 | B123: 104.8000031 | C123: 10.80000019 | D123: 1.469505668 | E123: 1.140082955 | F123: 100.2139969 | G123: 101.4140015 | H123: 101.6835022 | I123: 101.7497787
A124: 4 | B124: 105.1999969 | C124: 11.19999981 | D124: 1.446272135 | E124: 1.163190961 | F124: 100.2360001 | G124: 101.435997 | H124: 101.6822739 | I124: 101.7512589
A125: 4 | B125: 105.5999985 | C125: 11.60000038 | D125: 1.4225806 | E125: 1.187739611 | F125: 100.2579956 | G125: 101.4580002 | H125: 101.6805801 | I125: 101.7525101
A126: 4 | B126: 106 | C126: 12 | D126: 1.399148107 | E126: 1.213060617 | F126: 100.2799988 | G126: 101.4799957 | H126: 101.6791458 | I126: 101.7541809
A127: 5 | B127: 106 | C127: 0 | D127: 1.399260759 | E127: 1.212936401 | F127: 100.2799988 | G127: 101.4799957 | H127: 101.6792603 | I127: 101.7542801
A128: 5 | B128: 107.6666641 | C128: 1.666666627 | D128: 1.39877212 | E128: 1.213475823 | F128: 100.2883301 | G128: 101.4883347 | H128: 101.6871033 | I128: 101.7621841
A129: 5 | B129: 109.3333359 | C129: 3.333333254 | D129: 1.398291111 | E129: 1.214007258 | F129: 100.296669 | G129: 101.496666 | H129: 101.6949539 | I129: 101.7701035
A130: 5 | B130: 111 | C130: 5 | D130: 1.397817612 | E130: 1.214530826 | F130: 100.3050003 | G130: 101.5049973 | H130: 101.7028198 | I130: 101.7780304
A131: 5 | B131: 112.6666641 | C131: 6.666666508 | D131: 1.397351503 | E131: 1.215046763 | F131: 100.3133316 | G131: 101.5133286 | H131: 101.7106857 | I131: 101.7859573
A132: 5 | B132: 114.3333359 | C132: 8.333333015 | D132: 1.396892786 | E132: 1.215554833 | F132: 100.3216629 | G132: 101.5216675 | H132: 101.7185593 | I132: 101.7938995
A133: 5 | B133: 116 | C133: 10 | D133: 1.396441221 | E133: 1.216055512 | F133: 100.3300018 | G133: 101.5299988 | H133: 101.7264404 | I133: 101.8018417
A134: 5 | B134: 117.6666641 | C134: 11.66666698 | D134: 1.39599669 | E134: 1.216548681 | F134: 100.3383331 | G134: 101.5383301 | H134: 101.7343292 | I134: 101.8097916
A135: 5 | B135: 119.3333359 | C135: 13.33333302 | D135: 1.395559072 | E135: 1.217034698 | F135: 100.3466644 | G135: 101.546669 | H135: 101.7422256 | I135: 101.817749
A136: 5 | B136: 121 | C136: 15 | D136: 1.39512825 | E136: 1.217513442 | F136: 100.3549957 | G136: 101.5550003 | H136: 101.7501297 | I136: 101.8257141
A137: 5 | B137: 122.6666641 | C137: 16.66666603 | D137: 1.394704223 | E137: 1.217985034 | F137: 100.3633347 | G137: 101.5633316 | H137: 101.7580338 | I137: 101.8336792
A138: 5 | B138: 124.3333359 | C138: 18.33333397 | D138: 1.394286871 | E138: 1.218449593 | F138: 100.371666 | G138: 101.5716629 | H138: 101.7659531 | I138: 101.8416519
A139: 5 | B139: 126 | C139: 20 | D139: 1.393875957 | E139: 1.218907356 | F139: 100.3799973 | G139: 101.5800018 | H139: 101.7738724 | I139: 101.8496323
A140: 5 | B140: 127.6666641 | C140: 21.66666603 | D140: 1.393471479 | E140: 1.219358206 | F140: 100.3883286 | G140: 101.5883331 | H140: 101.7818069 | I140: 101.8576126
A141: 5 | B141: 129.3333282 | C141: 23.33333397 | D141: 1.39307332 | E141: 1.21980226 | F141: 100.3966675 | G141: 101.5966644 | H141: 101.7897415 | I141: 101.8656082
A142: 5 | B142: 131 | C142: 25 | D142: 1.39268136 | E142: 1.220239878 | F142: 100.4049988 | G142: 101.6049957 | H142: 101.7976837 | I142: 101.8736038
A143: 5 | B143: 132.6666718 | C143: 26.66666603 | D143: 1.392295599 | E143: 1.220670819 | F143: 100.4133301 | G143: 101.6133347 | H143: 101.8056259 | I143: 101.8816071
A144: 5 | B144: 134.3333282 | C144: 28.33333397 | D144: 1.391915798 | E144: 1.221095443 | F144: 100.421669 | G144: 101.621666 | H144: 101.8135834 | I144: 101.8896103
A145: 5 | B145: 136 | C145: 30 | D145: 1.391541958 | E145: 1.221513629 | F145: 100.4300003 | G145: 101.6299973 | H145: 101.8215408 | I145: 101.8976212
A146: 5 | B146: 137.6666718 | C146: 31.66666603 | D146: 1.391173959 | E146: 1.221925497 | F146: 100.4383316 | G146: 101.6383286 | H146: 101.8295059 | I146: 101.9056396
A147: 5 | B147: 139.3333282 | C147: 33.33333206 | D147: 1.390811682 | E147: 1.222331405 | F147: 100.4466629 | G147: 101.6466675 | H147: 101.8374786 | I147: 101.9136581
A148: 5 | B148: 141 | C148: 35 | D148: 1.390455008 | E148: 1.222731233 | F148: 100.4550018 | G148: 101.6549988 | H148: 101.8454514 | I148: 101.9216843
A149: 5 | B149: 142.6666718 | C149: 36.66666794 | D149: 1.390103936 | E149: 1.223124981 | F149: 100.4633331 | G149: 101.6633301 | H149: 101.8534393 | I149: 101.929718
A150: 5 | B150: 144.3333282 | C150: 38.33333206 | D150: 1.389758348 | E150: 1.223512888 | F150: 100.4716644 | G150: 101.671669 | H150: 101.8614273 | I150: 101.9377518
A151: 5 | B151: 146 | C151: 40 | D151: 1.389418125 | E151: 1.223894954 | F151: 100.4799957 | G151: 101.6800003 | H151: 101.8694153 | I151: 101.9457932
A152: 5 | B152: 147.6666718 | C152: 41.66666794 | D152: 1.389083266 | E152: 1.224271297 | F152: 100.4883347 | G152: 101.6883316 | H152: 101.8774185 | I152: 101.9538422
A153: 5 | B153: 149.3333282 | C153: 43.33333206 | D153: 1.388753653 | E153: 1.224641919 | F153: 100.496666 | G153: 101.6966629 | H153: 101.8854218 | I153: 101.9618912
A154: 5 | B154: 151 | C154: 45 | D154: 1.388429165 | E154: 1.225007057 | F154: 100.5049973 | G154: 101.7050018 | H154: 101.893425 | I154: 101.9699478
A155: 5 | B155: 152.6666718 | C155: 46.66666794 | D155: 1.388109803 | E155: 1.225366473 | F155: 100.5133286 | G155: 101.7133331 | H155: 101.9014435 | I155: 101.9780045
A156: 5 | B156: 154.3333282 | C156: 48.33333206 | D156: 1.387795448 | E156: 1.225720644 | F156: 100.5216675 | G156: 101.7216644 | H156: 101.909462 | I156: 101.9860687
A157: 5 | B157: 156 | C157: 50 | D157: 1.387485981 | E157: 1.22606945 | F157: 100.5299988 | G157: 101.7299957 | H157: 101.9174881 | I157: 101.994133

Sheet Plot Data (hidden)
A2: 0 | B2: 99.75 | D2: 0 | E2: 100.5493317 | G2: 0 | H2: 101.1179886 | J2: 0 | K2: 100.9499969
A3: 50 | B3: 100 | D3: 50 | E3: 100.7993317 | G3: 50 | H3: 101.3679886 | J3: 50 | K3: 101.1999969
A4: 50 | B4: 100 | D4: 50 | G4: 50 | J4: 50
A5: 62 | B5: 99.45999908 | D5: 50 | E5: 100.7993317 | G5: 50 | H5: 100 | J5: 50 | K5: 101.1999969
A6: 62 | B6: 99.45999908 | D6: 62 | E6: 100.2593307 | G6: 62 | H6: 99.45999908 | J6: 62 | K6: 100.659996
A7: 94 | B7: 99.62000275 | D7: 62 | G7: 62 | J7: 62
A8: 94 | B8: 102.0200043 | D8: 62 | E8: 100.7591858 | G8: 62 | H8: 101.3940506
A9: 62 | B9: 101.8600006 | D9: 94 | E9: 100.9191895 | G9: 94 | H9: 101.5540543
A10: 62 | B10: 99.45999908 | D10: 94 | G10: 94
A11: 94 | B11: 99.62000275 | D11: 94 | E11: 100.4193344 | G11: 94 | H11: 100.310318 | J11: 94 | K11: 100.8199997
A12: 94 | B12: 99.62000275 | D12: 106 | E12: 101.0793304 | G12: 106 | H12: 100.970314 | J12: 106 | K12: 101.4799957
A13: 106 | B13: 100.2799988 | D13: 106 | G13: 106 | J13: 106
A14: 106 | B14: 100.2799988 | D14: 106 | E14: 101.0793304 | G14: 106 | H14: 101.6479874 | J14: 106 | K14: 101.4799957
A15: 156 | B15: 100.5299988 | D15: 156 | E15: 101.3293304 | G15: 156 | H15: 101.8979874 | J15: 156 | K15: 101.7299957
D16: 156 | G16: 156 | J16: 156

Sheet Temp
A1: X | B1: Y | C1: V | D1: STA | E1: E | F1: WL | G1: X | H1: Y | I1: V | J1: STA | K1: E | L1: WL
A2: 0 | B2: 1.367988825 | C2: 1.248452544 | D2: 0 | E2: 101.197464 | F2: 101.1179886 | G2: 0 | H2: 0 | I2: 0 | J2: 0 | K2: 0 | L2: 99.75
A3: 1.666666627 | B3: 1.367988825 | C3: 1.248452544 | D3: 1.666666627 | E3: 101.2057953 | F3: 101.1263199 | G3: 0 | H3: 0 | I3: 0 | J3: 0 | K3: 0 | L3: 99.75
A4: 3.333333254 | B4: 1.367988825 | C4: 1.248452544 | D4: 3.333333254 | E4: 101.2141342 | F4: 101.1346588 | G4: 0 | H4: 0 | I4: 0 | J4: 0 | K4: 0 | L4: 99.75
A5: 5 | B5: 1.367988825 | C5: 1.248452544 | D5: 5 | E5: 101.2224655 | F5: 101.1429901 | G5: 0 | H5: 0 | I5: 0 | J5: 0 | K5: 0 | L5: 99.75
A6: 6.666666508 | B6: 1.367988825 | C6: 1.248452544 | D6: 6.666666508 | E6: 101.2307968 | F6: 101.1513214 | G6: 0 | H6: 0 | I6: 0 | J6: 0 | K6: 0 | L6: 99.75
A7: 8.333333015 | B7: 1.367988825 | C7: 1.248452544 | D7: 8.333333015 | E7: 101.2391281 | F7: 101.1596527 | G7: 0 | H7: 0 | I7: 0 | J7: 0 | K7: 0 | L7: 99.75
A8: 10 | B8: 1.367988825 | C8: 1.248452544 | D8: 10 | E8: 101.247467 | F8: 101.1679916 | G8: 0 | H8: 0 | I8: 0 | J8: 0 | K8: 0 | L8: 99.75
A9: 11.66666698 | B9: 1.367988825 | C9: 1.248452544 | D9: 11.66666698 | E9: 101.2557983 | F9: 101.1763229 | G9: 0 | H9: 0 | I9: 0 | J9: 0 | K9: 0 | L9: 99.75
A10: 13.33333302 | B10: 1.367988825 | C10: 1.248452544 | D10: 13.33333302 | E10: 101.2641296 | F10: 101.1846542 | G10: 0 | H10: 0 | I10: 0 | J10: 0 | K10: 0 | L10: 99.75
A11: 15 | B11: 1.367988825 | C11: 1.248452544 | D11: 15 | E11: 101.2724609 | F11: 101.1929855 | G11: 0 | H11: 0 | I11: 0 | J11: 0 | K11: 0 | L11: 99.75
A12: 16.66666603 | B12: 1.367988825 | C12: 1.248452544 | D12: 16.66666603 | E12: 101.2807999 | F12: 101.2013245 | G12: 0 | H12: 0 | I12: 0 | J12: 0 | K12: 0 | L12: 99.75
A13: 18.33333397 | B13: 1.367988825 | C13: 1.248452544 | D13: 18.33333397 | E13: 101.2891312 | F13: 101.2096558 | G13: 0 | H13: 0 | I13: 0 | J13: 0 | K13: 0 | L13: 99.75
A14: 20 | B14: 1.367988825 | C14: 1.248452544 | D14: 20 | E14: 101.2974625 | F14: 101.2179871 | G14: 0 | H14: 0 | I14: 0 | J14: 0 | K14: 0 | L14: 99.75
A15: 21.66666603 | B15: 1.367988825 | C15: 1.248452544 | D15: 21.66666603 | E15: 101.3057938 | F15: 101.2263184 | G15: 0 | H15: 0 | I15: 0 | J15: 0 | K15: 0 | L15: 99.75
A16: 23.33333397 | B16: 1.367988825 | C16: 1.248452544 | D16: 23.33333397 | E16: 101.3141327 | F16: 101.2346573 | G16: 0 | H16: 0 | I16: 0 | J16: 0 | K16: 0 | L16: 99.75
A17: 25 | B17: 1.367988825 | C17: 1.248452544 | D17: 25 | E17: 101.322464 | F17: 101.2429886 | G17: 0 | H17: 0 | I17: 0 | J17: 0 | K17: 0 | L17: 99.75
A18: 26.66666603 | B18: 1.367988825 | C18: 1.248452544 | D18: 26.66666603 | E18: 101.3307953 | F18: 101.2513199 | G18: 0 | H18: 0 | I18: 0 | J18: 0 | K18: 0 | L18: 99.75
A19: 28.33333397 | B19: 1.367988825 | C19: 1.248452544 | D19: 28.33333397 | E19: 101.3391342 | F19: 101.2596588 | G19: 0 | H19: 0 | I19: 0 | J19: 0 | K19: 0 | L19: 99.75
A20: 30 | B20: 1.367988825 | C20: 1.248452544 | D20: 30 | E20: 101.3474655 | F20: 101.2679901 | G20: 0 | H20: 0 | I20: 0 | J20: 0 | K20: 0 | L20: 99.75
A21: 31.66666603 | B21: 1.367988825 | C21: 1.248452544 | D21: 31.66666603 | E21: 101.3557968 | F21: 101.2763214 | G21: 0 | H21: 0 | I21: 0 | J21: 0 | K21: 0 | L21: 99.75
A22: 33.33333206 | B22: 1.367988825 | C22: 1.248452544 | D22: 33.33333206 | E22: 101.3641281 | F22: 101.2846527 | G22: 0 | H22: 0 | I22: 0 | J22: 0 | K22: 0 | L22: 99.75
A23: 35 | B23: 1.367988825 | C23: 1.248452544 | D23: 35 | E23: 101.372467 | F23: 101.2929916 | G23: 0 | H23: 0 | I23: 0 | J23: 0 | K23: 0 | L23: 99.75
A24: 36.66666794 | B24: 1.367988825 | C24: 1.248452544 | D24: 36.66666794 | E24: 101.3807983 | F24: 101.3013229 | G24: 0 | H24: 0 | I24: 0 | J24: 0 | K24: 0 | L24: 99.75
A25: 38.33333206 | B25: 1.367988825 | C25: 1.248452544 | D25: 38.33333206 | E25: 101.3891296 | F25: 101.3096542 | G25: 0 | H25: 0 | I25: 0 | J25: 0 | K25: 0 | L25: 99.75
A26: 40 | B26: 1.367988825 | C26: 1.248452544 | D26: 40 | E26: 101.3974609 | F26: 101.3179855 | G26: 0 | H26: 0 | I26: 0 | J26: 0 | K26: 0 | L26: 99.75
A27: 41.66666794 | B27: 1.367988825 | C27: 1.248452544 | D27: 41.66666794 | E27: 101.4057999 | F27: 101.3263245 | G27: 0 | H27: 0 | I27: 0 | J27: 0 | K27: 0 | L27: 99.75
A28: 43.33333206 | B28: 1.367988825 | C28: 1.248452544 | D28: 43.33333206 | E28: 101.4141312 | F28: 101.3346558 | G28: 0 | H28: 0 | I28: 0 | J28: 0 | K28: 0 | L28: 99.75
A29: 45 | B29: 1.367988825 | C29: 1.248452544 | D29: 45 | E29: 101.4224625 | F29: 101.3429871 | G29: 0 | H29: 0 | I29: 0 | J29: 0 | K29: 0 | L29: 99.75
A30: 46.66666794 | B30: 1.367988825 | C30: 1.248452544 | D30: 46.66666794 | E30: 101.4307938 | F30: 101.3513184 | G30: 0 | H30: 0 | I30: 0 | J30: 0 | K30: 0 | L30: 99.75
A31: 48.33333206 | B31: 1.367988825 | C31: 1.248452544 | D31: 48.33333206 | E31: 101.4391327 | F31: 101.3596573 | G31: 0 | H31: 0 | I31: 0 | J31: 0 | K31: 0 | L31: 99.75
A32: 50 | B32: 1.367988825 | C32: 1.248452544 | D32: 50 | E32: 101.447464 | F32: 101.3679886 | G32: 0 | H32: 0 | I32: 0 | J32: 0 | K32: 0 | L32: 99.75
A33: 0 | B33: 1.368275404 | C33: 1.248117685 | D33: 50 | E33: 101.4477081 | F33: 101.3682785 | G33: 0 | H33: 0 | I33: 0 | J33: 50 | K33: 0 | L33: 100
A34: 0.400000006 | B34: 1.391322255 | C34: 1.221759439 | D34: 50.40000153 | E34: 101.4494324 | F34: 101.3733215 | G34: 0 | H34: 0 | I34: 0 | J34: 50 | K34: 0 | L34: 100
A35: 0.8000000119 | B35: 1.413587928 | C35: 1.197331071 | D35: 50.79999924 | E35: 101.4506836 | F35: 101.3775864 | G35: 0 | H35: 0 | I35: 0 | J35: 50 | K35: 0 | L35: 100
A36: 1.200000048 | B36: 1.435853601 | C36: 1.173860192 | D36: 51.20000076 | E36: 101.4521103 | F36: 101.3818512 | G36: 0 | H36: 0 | I36: 0 | J36: 50 | K36: 0 | L36: 100
A37: 1.600000024 | B37: 1.458119273 | C37: 1.151291966 | D37: 51.59999847 | E37: 101.4537048 | F37: 101.386116 | G37: 0 | H37: 0 | I37: 0 | J37: 50 | K37: 0 | L37: 100
A38: 2 | B38: 1.479603648 | C38: 1.130323291 | D38: 52 | E38: 101.4547501 | F38: 101.3896027 | G38: 0 | H38: 0 | I38: 0 | J38: 50 | K38: 0 | L38: 100
A39: 2.400000095 | B39: 1.501088023 | C39: 1.11010468 | D39: 52.40000153 | E39: 101.455925 | F39: 101.3930893 | G39: 0 | H39: 0 | I39: 0 | J39: 50 | K39: 0 | L39: 100
A40: 2.800000191 | B40: 1.522572398 | C40: 1.090596676 | D40: 52.79999924 | E40: 101.457222 | F40: 101.3965759 | G40: 0 | H40: 0 | I40: 0 | J40: 50 | K40: 0 | L40: 100
A41: 3.200000286 | B41: 1.543275476 | C41: 1.072435975 | D41: 53.20000076 | E41: 101.4579163 | F41: 101.3992767 | G41: 0 | H41: 0 | I41: 0 | J41: 50 | K41: 0 | L41: 100
A42: 3.600000381 | B42: 1.563978553 | C42: 1.054870248 | D42: 53.59999847 | E42: 101.4587173 | F42: 101.4019775 | G42: 0 | H42: 0 | I42: 0 | J42: 50 | K42: 0 | L42: 100
A43: 4.000000477 | B43: 1.58468163 | C43: 1.037870646 | D43: 54 | E43: 101.4596024 | F43: 101.4046783 | G43: 0 | H43: 0 | I43: 0 | J43: 50 | K43: 0 | L43: 100
A44: 4.400000572 | B44: 1.605384707 | C44: 1.021410346 | D44: 54.40000153 | E44: 101.4605789 | F44: 101.4073868 | G44: 0 | H44: 0 | I44: 0 | J44: 50 | K44: 0 | L44: 100
A45: 4.800000668 | B45: 1.626087785 | C45: 1.005463839 | D45: 54.79999924 | E45: 101.4616318 | F45: 101.4100876 | G45: 0 | H45: 0 | I45: 0 | J45: 50 | K45: 0 | L45: 100
A46: 5.200000763 | B46: 1.646009684 | C46: 0.9905823469 | D46: 55.20000076 | E46: 101.4620438 | F46: 101.4120102 | G46: 0 | H46: 0 | I46: 0 | J46: 50 | K46: 0 | L46: 100
A47: 5.600000858 | B47: 1.665931582 | C47: 0.9761348367 | D47: 55.60000229 | E47: 101.4625168 | F47: 101.4139328 | G47: 0 | H47: 0 | I47: 0 | J47: 50 | K47: 0 | L47: 100
A48: 6.000000954 | B48: 1.685853481 | C48: 0.9621027112 | D48: 56 | E48: 101.4630508 | F48: 101.4158554 | G48: 0 | H48: 0 | I48: 0 | J48: 50 | K48: 0 | L48: 100
A49: 6.400001049 | B49: 1.70577538 | C49: 0.9484682679 | D49: 56.40000153 | E49: 101.4636459 | F49: 101.417778 | G49: 0 | H49: 0 | I49: 0 | J49: 50 | K49: 0 | L49: 100
A50: 6.800001144 | B50: 1.725697279 | C50: 0.9352148771 | D50: 56.80000305 | E50: 101.4642944 | F50: 101.419693 | G50: 0 | H50: 0 | I50: 0 | J50: 50 | K50: 0 | L50: 100
A51: 7.20000124 | B51: 1.745619178 | C51: 0.9223268628 | D51: 57.20000076 | E51: 101.4649963 | F51: 101.4216156 | G51: 0 | H51: 0 | I51: 0 | J51: 50 | K51: 0 | L51: 100
A52: 7.600001335 | B52: 1.765541077 | C52: 0.909789145 | D52: 57.60000229 | E52: 101.465744 | F52: 101.4235382 | G52: 0 | H52: 0 | I52: 0 | J52: 50 | K52: 0 | L52: 100
A53: 8.000000954 | B53: 1.785462976 | C53: 0.8975877166 | D53: 58 | E53: 101.4665451 | F53: 101.4254608 | G53: 0 | H53: 0 | I53: 0 | J53: 50 | K53: 0 | L53: 100
A54: 8.400000572 | B54: 1.805384874 | C54: 0.8857093453 | D54: 58.40000153 | E54: 101.4673843 | F54: 101.4273834 | G54: 0 | H54: 0 | I54: 0 | J54: 50 | K54: 0 | L54: 100
A55: 8.800000191 | B55: 1.824525476 | C55: 0.8745890856 | D55: 58.79999924 | E55: 101.4675293 | F55: 101.4285278 | G55: 0 | H55: 0 | I55: 0 | J55: 50 | K55: 0 | L55: 100
A56: 9.199999809 | B56: 1.843666077 | C56: 0.8637446761 | D56: 59.20000076 | E56: 101.4677048 | F56: 101.4296646 | G56: 0 | H56: 0 | I56: 0 | J56: 50 | K56: 0 | L56: 100
A57: 9.599999428 | B57: 1.862806678 | C57: 0.8531659245 | D57: 59.59999847 | E57: 101.4679184 | F57: 101.430809 | G57: 0 | H57: 0 | I57: 0 | J57: 50 | K57: 0 | L57: 100
A58: 9.999999046 | B58: 1.881947279 | C58: 0.8428430557 | D58: 60 | E58: 101.4681702 | F58: 101.4319458 | G58: 0 | H58: 0 | I58: 0 | J58: 50 | K58: 0 | L58: 100
A59: 10.39999866 | B59: 1.90108788 | C59: 0.8327671289 | D59: 60.39999771 | E59: 101.4684448 | F59: 101.4330902 | G59: 0 | H59: 0 | I59: 0 | J59: 50 | K59: 0 | L59: 100
A60: 10.79999828 | B60: 1.920228481 | C60: 0.8229292035 | D60: 60.79999924 | E60: 101.4687576 | F60: 101.434227 | G60: 0 | H60: 0 | I60: 0 | J60: 50 | K60: 0 | L60: 100
A61: 11.1999979 | B61: 1.939369082 | C61: 0.813321054 | D61: 61.19999695 | E61: 101.469101 | F61: 101.4353714 | G61: 0 | H61: 0 | I61: 0 | J61: 50 | K61: 0 | L61: 100
A62: 11.59999752 | B62: 1.958509684 | C62: 0.8039346337 | D62: 61.59999847 | E62: 101.4694672 | F62: 101.4365082 | G62: 0 | H62: 0 | I62: 0 | J62: 50 | K62: 0 | L62: 100
A63: 11.99999714 | B63: 1.977650285 | C63: 0.7947624326 | D63: 61.99999619 | E63: 101.4698563 | F63: 101.4376526 | G63: 0 | H63: 0 | I63: 0 | J63: 50 | K63: 0 | L63: 100
A64: 0 | B64: 1.817075729 | C64: 2.176991701 | D64: 62 | E64: 101.5187302 | F64: 101.2770767 | G64: 0 | H64: 0 | I64: 0 | J64: 62 | K64: 0 | L64: 99.45999908
A65: 1.066666722 | B65: 1.818446517 | C65: 2.175322056 | D65: 63.06666565 | E65: 101.5250626 | F65: 101.2837753 | G65: 0 | H65: 0 | I65: 0 | J65: 62 | K65: 0 | L65: 99.45999908
A66: 2.133333445 | B66: 1.819801331 | C66: 2.173675776 | D66: 64.1333313 | E66: 101.5313873 | F66: 101.2904663 | G66: 0 | H66: 0 | I66: 0 | J66: 62 | K66: 0 | L66: 99.45999908
A67: 3.200000286 | B67: 1.821140289 | C67: 2.172052383 | D67: 65.19999695 | E67: 101.5376968 | F67: 101.297142 | G67: 0 | H67: 0 | I67: 0 | J67: 62 | K67: 0 | L67: 99.45999908
A68: 4.266666889 | B68: 1.822463512 | C68: 2.17045188 | D68: 66.26667023 | E68: 101.5439987 | F68: 101.3037949 | G68: 0 | H68: 0 | I68: 0 | J68: 62 | K68: 0 | L68: 99.45999908
A69: 5.333333492 | B69: 1.823771238 | C69: 2.168873549 | D69: 67.33333588 | E69: 101.550293 | F69: 101.3104401 | G69: 0 | H69: 0 | I69: 0 | J69: 62 | K69: 0 | L69: 99.45999908
A70: 6.400000095 | B70: 1.825063705 | C70: 2.167317152 | D70: 68.40000153 | E70: 101.556572 | F70: 101.3170624 | G70: 0 | H70: 0 | I70: 0 | J70: 62 | K70: 0 | L70: 99.45999908
A71: 7.466666698 | B71: 1.826340914 | C71: 2.165782452 | D71: 69.46666718 | E71: 101.5628433 | F71: 101.3236771 | G71: 0 | H71: 0 | I71: 0 | J71: 62 | K71: 0 | L71: 99.45999908
A72: 8.533333778 | B72: 1.827603102 | C72: 2.164269209 | D72: 70.53333282 | E72: 101.5691071 | F72: 101.3302689 | G72: 0 | H72: 0 | I72: 0 | J72: 62 | K72: 0 | L72: 99.45999908
A73: 9.600000381 | B73: 1.828850508 | C73: 2.162776709 | D73: 71.59999847 | E73: 101.5753555 | F73: 101.336853 | G73: 0 | H73: 0 | I73: 0 | J73: 62 | K73: 0 | L73: 99.45999908
A74: 10.66666698 | B74: 1.83008337 | C74: 2.161304712 | D74: 72.66666412 | E74: 101.5815964 | F74: 101.3434143 | G74: 0 | H74: 0 | I74: 0 | J74: 62 | K74: 0 | L74: 99.45999908
A75: 11.73333359 | B75: 1.831301808 | C75: 2.159852982 | D75: 73.7333374 | E75: 101.5878296 | F75: 101.349968 | G75: 0 | H75: 0 | I75: 0 | J75: 62 | K75: 0 | L75: 99.45999908
A76: 12.80000019 | B76: 1.832505822 | C76: 2.158421516 | D76: 74.80000305 | E76: 101.5940552 | F76: 101.3565063 | G76: 0 | H76: 0 | I76: 0 | J76: 62 | K76: 0 | L76: 99.45999908
A77: 13.86666679 | B77: 1.833695769 | C77: 2.157009602 | D77: 75.8666687 | E77: 101.6002655 | F77: 101.3630295 | G77: 0 | H77: 0 | I77: 0 | J77: 62 | K77: 0 | L77: 99.45999908
A78: 14.9333334 | B78: 1.834871769 | C78: 2.155617237 | D78: 76.93333435 | E78: 101.6064682 | F78: 101.3695374 | G78: 0 | H78: 0 | I78: 0 | J78: 62 | K78: 0 | L78: 99.45999908
A79: 16 | B79: 1.83603406 | C79: 2.154243708 | D79: 78 | E79: 101.6126633 | F79: 101.3760376 | G79: 0 | H79: 0 | I79: 0 | J79: 62 | K79: 0 | L79: 99.45999908
A80: 17.06666756 | B80: 1.83718276 | C80: 2.152888775 | D80: 79.06666565 | E80: 101.6188507 | F80: 101.382515 | G80: 0 | H80: 0 | I80: 0 | J80: 62 | K80: 0 | L80: 99.45999908
A81: 18.13333511 | B81: 1.838317871 | C81: 2.151552677 | D81: 80.1333313 | E81: 101.6250229 | F81: 101.3889847 | G81: 0 | H81: 0 | I81: 0 | J81: 62 | K81: 0 | L81: 99.45999908
A82: 19.20000267 | B82: 1.83943975 | C82: 2.150234461 | D82: 81.20000458 | E82: 101.6311874 | F82: 101.3954391 | G82: 0 | H82: 0 | I82: 0 | J82: 62 | K82: 0 | L82: 99.45999908
A83: 20.26667023 | B83: 1.840548515 | C83: 2.148934364 | D83: 82.26667023 | E83: 101.6373444 | F83: 101.401886 | G83: 0 | H83: 0 | I83: 0 | J83: 62 | K83: 0 | L83: 99.45999908
A84: 21.33333778 | B84: 1.841644287 | C84: 2.147651911 | D84: 83.33333588 | E84: 101.6434937 | F84: 101.4083099 | G84: 0 | H84: 0 | I84: 0 | J84: 62 | K84: 0 | L84: 99.45999908
A85: 22.40000534 | B85: 1.842727184 | C85: 2.1463871 | D85: 84.40000916 | E85: 101.6496353 | F85: 101.4147263 | G85: 0 | H85: 0 | I85: 0 | J85: 62 | K85: 0 | L85: 99.45999908
A86: 23.4666729 | B86: 1.843797445 | C86: 2.145138979 | D86: 85.4666748 | E86: 101.6557617 | F86: 101.4211349 | G86: 0 | H86: 0 | I86: 0 | J86: 62 | K86: 0 | L86: 99.45999908
A87: 24.53334045 | B87: 1.84485507 | C87: 2.143908024 | D87: 86.53334045 | E87: 101.6618881 | F87: 101.4275208 | G87: 0 | H87: 0 | I87: 0 | J87: 62 | K87: 0 | L87: 99.45999908
A88: 25.60000801 | B88: 1.845900297 | C88: 2.14269352 | D88: 87.6000061 | E88: 101.6679993 | F88: 101.4338989 | G88: 0 | H88: 0 | I88: 0 | J88: 62 | K88: 0 | L88: 99.45999908
A89: 26.66667557 | B89: 1.846933365 | C89: 2.141495466 | D89: 88.66667175 | E89: 101.6741028 | F89: 101.4402695 | G89: 0 | H89: 0 | I89: 0 | J89: 62 | K89: 0 | L89: 99.45999908
A90: 27.73334312 | B90: 1.847954273 | C90: 2.140313625 | D90: 89.73334503 | E90: 101.6801987 | F90: 101.4466248 | G90: 0 | H90: 0 | I90: 0 | J90: 62 | K90: 0 | L90: 99.45999908
A91: 28.80001068 | B91: 1.848963261 | C91: 2.13914752 | D91: 90.80001068 | E91: 101.6862869 | F91: 101.4529648 | G91: 0 | H91: 0 | I91: 0 | J91: 62 | K91: 0 | L91: 99.45999908
A92: 29.86667824 | B92: 1.849960327 | C92: 2.13799715 | D92: 91.86667633 | E92: 101.6923676 | F92: 101.4592972 | G92: 0 | H92: 0 | I92: 0 | J92: 62 | K92: 0 | L92: 99.45999908
A93: 30.93334579 | B93: 1.850945711 | C93: 2.13686204 | D93: 92.93334961 | E93: 101.6984406 | F93: 101.4656143 | G93: 0 | H93: 0 | I93: 0 | J93: 62 | K93: 0 | L93: 99.45999908
A94: 32.00001144 | B94: 1.851919651 | C94: 2.135742426 | D94: 94.00001526 | E94: 101.7045059 | F94: 101.4719238 | G94: 0 | H94: 0 | I94: 0 | J94: 62 | K94: 0 | L94: 99.45999908
A95: 0 | B95: 2.085881233 | C95: 0.7465968728 | D95: 94 | E95: 101.7343063 | F95: 101.7058868 | G95: 0 | H95: 0.6903168559 | I95: 3.000050068 | J95: 94 | K95: 100.7692413 | L95: 100.310318
A96: 0.400000006 | B96: 2.063580513 | C96: 0.7560377121 | D96: 94.40000153 | E96: 101.734726 | F96: 101.7055817 | G96: 0.400000006 | H96: 0.6903168559 | I96: 3.000050068 | J96: 94.40000153 | K96: 100.7912369 | L96: 100.3323212
A97: 0.8000000119 | B97: 2.041048527 | C97: 0.765822053 | D97: 94.80000305 | E97: 101.7349548 | F97: 101.7050476 | G97: 0.8000000119 | H97: 0.6903168559 | I97: 3.000050068 | J97: 94.80000305 | K97: 100.8132401 | L97: 100.3543167
A98: 1.200000048 | B98: 2.018311977 | C98: 0.7759553194 | D98: 95.19999695 | E98: 101.7350159 | F98: 101.7043152 | G98: 1.200000048 | H98: 0.6903168559 | I98: 3.000050068 | J98: 95.19999695 | K98: 100.8352356 | L98: 100.3763199
A99: 1.600000024 | B99: 1.995991707 | C99: 0.7861673832 | D99: 95.59999847 | E99: 101.7355118 | F99: 101.7039948 | G99: 1.600000024 | H99: 0.6903168559 | I99: 3.000050068 | J99: 95.59999847 | K99: 100.8572388 | L99: 100.3983154
A100: 2 | B100: 1.97349596 | C100: 0.7967353463 | D100: 96 | E100: 101.7358627 | F100: 101.7034988 | G100: 2 | H100: 0.6903168559 | I100: 3.000050068 | J100: 96 | K100: 100.8792343 | L100: 100.4203186
A101: 2.400000095 | B101: 1.950849771 | C101: 0.8076649308 | D101: 96.40000153 | E101: 101.7361145 | F101: 101.7028503 | G101: 2.400000095 | H101: 0.6903168559 | I101: 3.000050068 | J101: 96.40000153 | K101: 100.9012375 | L101: 100.4423218
A102: 2.800000191 | B102: 1.928077936 | C102: 0.8189616799 | D102: 96.80000305 | E102: 101.7362747 | F102: 101.7020798 | G102: 2.800000191 | H102: 0.6903168559 | I102: 3.000050068 | J102: 96.80000305 | K102: 100.923233 | L102: 100.4643173
A103: 3.200000286 | B103: 1.905756474 | C103: 0.8303459287 | D103: 97.19999695 | E103: 101.7369156 | F103: 101.7017593 | G103: 3.200000286 | H103: 0.6903168559 | I103: 3.000050068 | J103: 97.19999695 | K103: 100.9452362 | L103: 100.4863205
A104: 3.600000381 | B104: 1.883336306 | C104: 0.8421037197 | D104: 97.59999847 | E104: 101.7374954 | F104: 101.7013397 | G104: 3.600000381 | H104: 0.6903168559 | I104: 3.000050068 | J104: 97.59999847 | K104: 100.9672394 | L104: 100.508316
A105: 4.000000477 | B105: 1.860841036 | C105: 0.8542403579 | D105: 98 | E105: 101.7380524 | F105: 101.7008438 | G105: 4.000000477 | H105: 0.6903168559 | I105: 3.000050068 | J105: 98 | K105: 100.9892349 | L105: 100.5303192
A106: 4.400000572 | B106: 1.838294268 | C106: 0.8667609692 | D106: 98.40000153 | E106: 101.7386017 | F106: 101.7002945 | G106: 4.400000572 | H106: 0.6903168559 | I106: 3.000050068 | J106: 98.40000153 | K106: 101.0112381 | L106: 100.5523148
A107: 4.800000668 | B107: 1.815719128 | C107: 0.8796705008 | D107: 98.80000305 | E107: 101.7391739 | F107: 101.6997223 | G107: 4.800000668 | H107: 0.6903168559 | I107: 3.000050068 | J107: 98.80000305 | K107: 101.0332336 | L107: 100.5743179
A108: 5.200000763 | B108: 1.79338634 | C108: 0.8928254843 | D108: 99.19999695 | E108: 101.740036 | F108: 101.6993866 | G108: 5.200000763 | H108: 0.6903168559 | I108: 3.000050068 | J108: 99.19999695 | K108: 101.0552368 | L108: 100.5963211
A109: 5.600000858 | B109: 1.770573616 | C109: 0.9066756964 | D109: 99.59999847 | E109: 101.7404938 | F109: 101.6985779 | G109: 5.600000858 | H109: 0.6903168559 | I109: 3.000050068 | J109: 99.59999847 | K109: 101.0772324 | L109: 100.6183167
A110: 6.000000954 | B110: 1.747335911 | C110: 0.9212328196 | D110: 100 | E110: 101.7406082 | F110: 101.6973343 | G110: 6.000000954 | H110: 0.6903168559 | I110: 3.000050068 | J110: 100 | K110: 101.0992355 | L110: 100.6403198
A111: 6.400001049 | B111: 1.724654317 | C111: 0.9358995557 | D111: 100.4000015 | E111: 101.7413177 | F111: 101.6966553 | G111: 6.400001049 | H111: 0.6903168559 | I111: 3.000050068 | J111: 100.4000015 | K111: 101.1212387 | L111: 100.6623154
A112: 6.800001144 | B112: 1.701611757 | C112: 0.9512858391 | D112: 100.8000031 | E112: 101.7417526 | F112: 101.69561 | G112: 6.800001144 | H112: 0.6903168559 | I112: 3.000050068 | J112: 100.8000031 | K112: 101.1432343 | L112: 100.6843185
A113: 7.20000124 | B113: 1.679142714 | C113: 0.9667841196 | D113: 101.2000046 | E113: 101.7427979 | F113: 101.6951447 | G113: 7.20000124 | H113: 0.6903168559 | I113: 3.000050068 | J113: 101.2000046 | K113: 101.1652374 | L113: 100.7063141
A114: 7.600001335 | B114: 1.656374216 | C114: 0.9830129743 | D114: 101.5999985 | E114: 101.7436447 | F114: 101.6943741 | G114: 7.600001335 | H114: 0.6903168559 | I114: 3.000050068 | J114: 101.5999985 | K114: 101.187233 | L114: 100.7283173
A115: 8.000000954 | B115: 1.633358002 | C115: 0.9999815226 | D115: 102 | E115: 101.7443466 | F115: 101.6933594 | G115: 8.000000954 | H115: 0.6903168559 | I115: 3.000050068 | J115: 102 | K115: 101.2092361 | L115: 100.7503204
A116: 8.400000572 | B116: 1.61014533 | C116: 1.017698884 | D116: 102.4000015 | E116: 101.744957 | F116: 101.6921463 | G116: 8.400000572 | H116: 0.6903168559 | I116: 3.000050068 | J116: 102.4000015 | K116: 101.2312317 | L116: 100.772316
A117: 8.800000191 | B117: 1.586786866 | C117: 1.036172628 | D117: 102.8000031 | E117: 101.7455292 | F117: 101.6907883 | G117: 8.800000191 | H117: 0.6903168559 | I117: 3.000050068 | J117: 102.8000031 | K117: 101.2532349 | L117: 100.7943192
A118: 9.199999809 | B118: 1.563332319 | C118: 1.055409789 | D118: 103.1999969 | E118: 101.7461319 | F118: 101.6893311 | G118: 9.199999809 | H118: 0.7023316026 | I118: 2.93730855 | J118: 103.1999969 | K118: 101.2682571 | L118: 100.828331
A119: 9.599999428 | B119: 1.539830446 | C119: 1.07541585 | D119: 103.5999985 | E119: 101.7468033 | F119: 101.6878281 | G119: 9.599999428 | H119: 0.7056956887 | I119: 2.920139551 | J119: 103.5999985 | K119: 101.2884903 | L119: 100.8536987
A120: 9.999999046 | B120: 1.516328335 | C120: 1.096195221 | D120: 104 | E120: 101.7475967 | F120: 101.6863251 | G120: 9.999999046 | H120: 0.7096158266 | I120: 2.900346756 | J120: 104 | K120: 101.3085403 | L120: 100.8796158
A121: 10.39999866 | B121: 1.492872 | C121: 1.117750525 | D121: 104.4000015 | E121: 101.7485733 | F121: 101.6848679 | G121: 10.39999866 | H121: 0.7145351768 | I121: 2.875829458 | J121: 104.4000015 | K121: 101.3282318 | L121: 100.9065323
A122: 10.79999828 | B122: 1.469505787 | C122: 1.140082717 | D122: 104.7999954 | E122: 101.7497787 | F122: 101.6835022 | G122: 10.79999828 | H122: 0.7207084894 | I122: 2.845556021 | J122: 104.7999954 | K122: 101.34758 | L122: 100.9347076
A123: 11.1999979 | B123: 1.446272254 | C123: 1.163190842 | D123: 105.1999969 | E123: 101.7512589 | F123: 101.6822739 | G123: 11.1999979 | H123: 0.7296110392 | I123: 2.802839279 | J123: 105.1999969 | K123: 101.3661728 | L123: 100.9656067
A124: 11.59999752 | B124: 1.422580719 | C124: 1.187739372 | D124: 105.5999985 | E124: 101.7525101 | F124: 101.6805801 | G124: 11.59999752 | H124: 0.7443991899 | I124: 2.734238386 | J124: 105.5999985 | K124: 101.3835983 | L124: 101.0023956
A125: 11.99999714 | B125: 1.399148107 | C125: 1.213060617 | D125: 106 | E125: 101.7541809 | F125: 101.6791458 | G125: 11.99999714 | H125: 0.7993330956 | I125: 2.502607346 | J125: 106 | K125: 101.3986816 | L125: 101.0793304
A126: 0 | B126: 1.399260759 | C126: 1.212936401 | D126: 106 | E126: 101.7542801 | F126: 101.6792603 | G126: 0 | H126: 0 | I126: 0 | J126: 106 | K126: 0 | L126: 100.2799988
A127: 1.666666627 | B127: 1.39877212 | C127: 1.213475823 | D127: 107.6666641 | E127: 101.7621841 | F127: 101.6871033 | G127: 0 | H127: 0 | I127: 0 | J127: 106 | K127: 0 | L127: 100.2799988
A128: 3.333333254 | B128: 1.398291111 | C128: 1.214007258 | D128: 109.3333359 | E128: 101.7701035 | F128: 101.6949539 | G128: 0 | H128: 0 | I128: 0 | J128: 106 | K128: 0 | L128: 100.2799988
A129: 5 | B129: 1.397817612 | C129: 1.214530826 | D129: 111 | E129: 101.7780304 | F129: 101.7028198 | G129: 0 | H129: 0 | I129: 0 | J129: 106 | K129: 0 | L129: 100.2799988
A130: 6.666666508 | B130: 1.397351503 | C130: 1.215046763 | D130: 112.6666641 | E130: 101.7859573 | F130: 101.7106857 | G130: 0 | H130: 0 | I130: 0 | J130: 106 | K130: 0 | L130: 100.2799988
A131: 8.333333015 | B131: 1.396892786 | C131: 1.215554833 | D131: 114.3333359 | E131: 101.7938995 | F131: 101.7185593 | G131: 0 | H131: 0 | I131: 0 | J131: 106 | K131: 0 | L131: 100.2799988
A132: 10 | B132: 1.396441221 | C132: 1.216055512 | D132: 116 | E132: 101.8018417 | F132: 101.7264404 | G132: 0 | H132: 0 | I132: 0 | J132: 106 | K132: 0 | L132: 100.2799988
A133: 11.66666698 | B133: 1.39599669 | C133: 1.216548681 | D133: 117.6666641 | E133: 101.8097916 | F133: 101.7343292 | G133: 0 | H133: 0 | I133: 0 | J133: 106 | K133: 0 | L133: 100.2799988
A134: 13.33333397 | B134: 1.395559072 | C134: 1.217034698 | D134: 119.3333359 | E134: 101.817749 | F134: 101.7422256 | G134: 0 | H134: 0 | I134: 0 | J134: 106 | K134: 0 | L134: 100.2799988
A135: 15.00000095 | B135: 1.39512825 | C135: 1.217513442 | D135: 121 | E135: 101.8257141 | F135: 101.7501297 | G135: 0 | H135: 0 | I135: 0 | J135: 106 | K135: 0 | L135: 100.2799988
A136: 16.66666794 | B136: 1.394704223 | C136: 1.217985034 | D136: 122.6666718 | E136: 101.8336792 | F136: 101.7580338 | G136: 0 | H136: 0 | I136: 0 | J136: 106 | K136: 0 | L136: 100.2799988
A137: 18.33333397 | B137: 1.394286871 | C137: 1.218449593 | D137: 124.3333359 | E137: 101.8416519 | F137: 101.7659531 | G137: 0 | H137: 0 | I137: 0 | J137: 106 | K137: 0 | L137: 100.2799988
A138: 20 | B138: 1.393875957 | C138: 1.218907356 | D138: 126 | E138: 101.8496323 | F138: 101.7738724 | G138: 0 | H138: 0 | I138: 0 | J138: 106 | K138: 0 | L138: 100.2799988
A139: 21.66666603 | B139: 1.393471479 | C139: 1.219358206 | D139: 127.6666641 | E139: 101.8576126 | F139: 101.7818069 | G139: 0 | H139: 0 | I139: 0 | J139: 106 | K139: 0 | L139: 100.2799988
A140: 23.33333206 | B140: 1.39307332 | C140: 1.21980226 | D140: 129.3333282 | E140: 101.8656082 | F140: 101.7897415 | G140: 0 | H140: 0 | I140: 0 | J140: 106 | K140: 0 | L140: 100.2799988
A141: 24.99999809 | B141: 1.39268136 | C141: 1.220239878 | D141: 131 | E141: 101.8736038 | F141: 101.7976837 | G141: 0 | H141: 0 | I141: 0 | J141: 106 | K141: 0 | L141: 100.2799988
A142: 26.66666412 | B142: 1.392295599 | C142: 1.220670819 | D142: 132.6666565 | E142: 101.8816071 | F142: 101.8056259 | G142: 0 | H142: 0 | I142: 0 | J142: 106 | K142: 0 | L142: 100.2799988
A143: 28.33333015 | B143: 1.391915798 | C143: 1.221095443 | D143: 134.3333282 | E143: 101.8896103 | F143: 101.8135834 | G143: 0 | H143: 0 | I143: 0 | J143: 106 | K143: 0 | L143: 100.2799988
A144: 29.99999619 | B144: 1.391541958 | C144: 1.221513629 | D144: 136 | E144: 101.8976212 | F144: 101.8215408 | G144: 0 | H144: 0 | I144: 0 | J144: 106 | K144: 0 | L144: 100.2799988
A145: 31.66666222 | B145: 1.391173959 | C145: 1.221925497 | D145: 137.6666565 | E145: 101.9056396 | F145: 101.8295059 | G145: 0 | H145: 0 | I145: 0 | J145: 106 | K145: 0 | L145: 100.2799988
A146: 33.33332825 | B146: 1.390811682 | C146: 1.222331405 | D146: 139.3333282 | E146: 101.9136581 | F146: 101.8374786 | G146: 0 | H146: 0 | I146: 0 | J146: 106 | K146: 0 | L146: 100.2799988
A147: 34.99999619 | B147: 1.390455008 | C147: 1.222731233 | D147: 141 | E147: 101.9216843 | F147: 101.8454514 | G147: 0 | H147: 0 | I147: 0 | J147: 106 | K147: 0 | L147: 100.2799988
A148: 36.66666412 | B148: 1.390103936 | C148: 1.223124981 | D148: 142.6666565 | E148: 101.929718 | F148: 101.8534393 | G148: 0 | H148: 0 | I148: 0 | J148: 106 | K148: 0 | L148: 100.2799988
A149: 38.33333206 | B149: 1.389758348 | C149: 1.223512888 | D149: 144.3333282 | E149: 101.9377518 | F149: 101.8614273 | G149: 0 | H149: 0 | I149: 0 | J149: 106 | K149: 0 | L149: 100.2799988
A150: 40 | B150: 1.389418125 | C150: 1.223894954 | D150: 146 | E150: 101.9457932 | F150: 101.8694153 | G150: 0 | H150: 0 | I150: 0 | J150: 106 | K150: 0 | L150: 100.2799988
A151: 41.66666794 | B151: 1.389083266 | C151: 1.224271297 | D151: 147.6666718 | E151: 101.9538422 | F151: 101.8774185 | G151: 0 | H151: 0 | I151: 0 | J151: 106 | K151: 0 | L151: 100.2799988
A152: 43.33333588 | B152: 1.388753653 | C152: 1.224641919 | D152: 149.3333435 | E152: 101.9618912 | F152: 101.8854218 | G152: 0 | H152: 0 | I152: 0 | J152: 106 | K152: 0 | L152: 100.2799988
A153: 45.00000381 | B153: 1.388429165 | C153: 1.225007057 | D153: 151 | E153: 101.9699478 | F153: 101.893425 | G153: 0 | H153: 0 | I153: 0 | J153: 106 | K153: 0 | L153: 100.2799988
A154: 46.66667175 | B154: 1.388109803 | C154: 1.225366473 | D154: 152.6666718 | E154: 101.9780045 | F154: 101.9014435 | G154: 0 | H154: 0 | I154: 0 | J154: 106 | K154: 0 | L154: 100.2799988
A155: 48.33333969 | B155: 1.387795448 | C155: 1.225720644 | D155: 154.3333435 | E155: 101.9860687 | F155: 101.909462 | G155: 0 | H155: 0 | I155: 0 | J155: 106 | K155: 0 | L155: 100.2799988
A156: 50.00000763 | B156: 1.387485981 | C156: 1.22606945 | D156: 156 | E156: 101.994133 | F156: 101.9174881 | G156: 0 | H156: 0 | I156: 0 | J156: 106 | K156: 0 | L156: 100.2799988
A157: 0 | B157: 3.005694628 | C157: 1.108772635 | D157: 192 | E157: 100.8683777 | F157: 100.8056946 | G157: 0 | H157: 0 | I157: 0 | J157: 192 | K157: 0 | L157: 97.80000305
A158: 3.333333254 | B158: 2.946011066 | C158: 1.133782148 | D158: 195.3333282 | E158: 100.8782272 | F158: 100.8126831 | G158: 0 | H158: 0 | I158: 0 | J158: 192 | K158: 0 | L158: 97.80000305
A159: 6.666666508 | B159: 2.886265755 | C159: 1.159973621 | D159: 198.6666718 | E159: 100.8882065 | F159: 100.819603 | G159: 0 | H159: 0 | I159: 0 | J159: 192 | K159: 0 | L159: 97.80000305
A160: 10 | B160: 2.827318192 | C160: 1.187029004 | D160: 202 | E160: 100.8991699 | F160: 100.8273239 | G160: 0 | H160: 0 | I160: 0 | J160: 192 | K160: 0 | L160: 97.80000305
A161: 13.33333302 | B161: 2.76871109 | C161: 1.215209007 | D161: 205.3333282 | E161: 100.910675 | F161: 100.8353806 | G161: 0 | H161: 0 | I161: 0 | J161: 192 | K161: 0 | L161: 97.80000305
A162: 16.66666603 | B162: 2.71065712 | C162: 1.244473934 | D162: 208.6666718 | E162: 100.9229584 | F162: 100.8439941 | G162: 0 | H162: 0 | I162: 0 | J162: 192 | K162: 0 | L162: 97.80000305
A163: 20 | B163: 2.653356552 | C163: 1.274774909 | D163: 212 | E163: 100.9362183 | F163: 100.853363 | G163: 0 | H163: 0 | I163: 0 | J163: 192 | K163: 0 | L163: 97.80000305
A164: 23.33333397 | B164: 2.596485138 | C164: 1.306344151 | D164: 215.3333282 | E164: 100.9501724 | F164: 100.8631516 | G164: 0 | H164: 0 | I164: 0 | J164: 192 | K164: 0 | L164: 97.80000305
A165: 26.66666794 | B165: 2.540057659 | C165: 1.339251161 | D165: 218.6666718 | E165: 100.9648514 | F165: 100.8733978 | G165: 0 | H165: 0 | I165: 0 | J165: 192 | K165: 0 | L165: 97.80000305
A166: 30.00000191 | B166: 2.484125614 | C166: 1.373547435 | D166: 222 | E166: 100.9803238 | F166: 100.8841324 | G166: 0 | H166: 0 | I166: 0 | J166: 192 | K166: 0 | L166: 97.80000305
A167: 33.33333588 | B167: 2.429842949 | C167: 1.408554554 | D167: 225.3333435 | E167: 100.997673 | F167: 100.8965149 | G167: 0 | H167: 0 | I167: 0 | J167: 192 | K167: 0 | L167: 97.80000305
A168: 36.66666794 | B168: 2.37571907 | C168: 1.44528234 | D168: 228.6666718 | E168: 101.015564 | F168: 100.9090576 | G168: 0 | H168: 0 | I168: 0 | J168: 192 | K168: 0 | L168: 97.80000305
A169: 40 | B169: 2.322916031 | C169: 1.483007669 | D169: 232 | E169: 101.0350571 | F169: 100.9229202 | G169: 0 | H169: 0 | I169: 0 | J169: 192 | K169: 0 | L169: 97.80000305
A170: 43.33333206 | B170: 2.2709589 | C170: 1.52210176 | D170: 235.3333282 | E170: 101.0557632 | F170: 100.9376297 | G170: 0 | H170: 0 | I170: 0 | J170: 192 | K170: 0 | L170: 97.80000305
A171: 46.66666412 | B171: 2.220194817 | C171: 1.562341452 | D171: 238.6666565 | E171: 101.0779877 | F171: 100.9535294 | G171: 0 | H171: 0 | I171: 0 | J171: 192 | K171: 0 | L171: 97.80000305
A172: 49.99999619 | B172: 2.170933723 | C172: 1.603477478 | D172: 242 | E172: 101.1020355 | F172: 100.9709396 | G172: 0 | H172: 0 | I172: 0 | J172: 192 | K172: 0 | L172: 97.80000305
A173: 53.33332825 | B173: 2.122896671 | C173: 1.645732403 | D173: 245.3333282 | E173: 101.1276703 | F173: 100.989563 | G173: 0 | H173: 0 | I173: 0 | J173: 192 | K173: 0 | L173: 97.80000305
A174: 56.66666031 | B174: 2.076453924 | C174: 1.688757539 | D174: 248.6666565 | E174: 101.1552048 | F174: 101.0097885 | G174: 0 | H174: 0 | I174: 0 | J174: 192 | K174: 0 | L174: 97.80000305
A175: 59.99999237 | B175: 2.032151222 | C175: 1.731950402 | D175: 252 | E175: 101.1851044 | F175: 101.0321579 | G175: 0 | H175: 0 | I175: 0 | J175: 192 | K175: 0 | L175: 97.80000305
A176: 63.33332443 | B176: 1.989564419 | C176: 1.77560544 | D176: 255.3333282 | E176: 101.2169876 | F176: 101.0562363 | G176: 0 | H176: 0 | I176: 0 | J176: 192 | K176: 0 | L176: 97.80000305
A177: 66.66665649 | B177: 1.949029922 | C177: 1.819251418 | D177: 258.6666565 | E177: 101.2511215 | F177: 101.0823669 | G177: 0 | H177: 0 | I177: 0 | J177: 192 | K177: 0 | L177: 97.80000305
A178: 69.99999237 | B178: 1.910151958 | C178: 1.863178015 | D178: 262 | E178: 101.2871628 | F178: 101.1101532 | G178: 0 | H178: 0 | I178: 0 | J178: 192 | K178: 0 | L178: 97.80000305
A179: 73.33332825 | B179: 1.873950124 | C179: 1.906032443 | D179: 265.333313 | E179: 101.3258591 | F179: 101.1406174 | G179: 0 | H179: 0 | I179: 0 | J179: 192 | K179: 0 | L179: 97.80000305
A180: 76.66666412 | B180: 1.840024948 | C180: 1.948020339 | D180: 268.6666565 | E180: 101.3668518 | F180: 101.1733627 | G180: 0 | H180: 0 | I180: 0 | J180: 192 | K180: 0 | L180: 97.80000305
A181: 80 | B181: 1.808858991 | C181: 1.988257408 | D181: 272 | E181: 101.4104309 | F181: 101.2088623 | G181: 0 | H181: 0 | I181: 0 | J181: 192 | K181: 0 | L181: 97.80000305
A182: 83.33333588 | B182: 1.780329704 | C182: 2.026575565 | D182: 275.3333435 | E182: 101.4564133 | F182: 101.2470016 | G182: 0 | H182: 0 | I182: 0 | J182: 192 | K182: 0 | L182: 97.80000305
A183: 86.66667175 | B183: 1.754527688 | C183: 2.062525272 | D183: 278.666687 | E183: 101.504776 | F183: 101.2878647 | G183: 0 | H183: 0 | I183: 0 | J183: 192 | K183: 0 | L183: 97.80000305
A184: 90.00000763 | B184: 1.731467247 | C184: 2.095751762 | D184: 282 | E184: 101.5554276 | F184: 101.3314667 | G184: 0 | H184: 0 | I184: 0 | J184: 192 | K184: 0 | L184: 97.80000305
A185: 93.33334351 | B185: 1.710856915 | C185: 2.126367331 | D185: 285.3333435 | E185: 101.6080704 | F185: 101.3775253 | G185: 0 | H185: 0 | I185: 0 | J185: 192 | K185: 0 | L185: 97.80000305
A186: 96.66667938 | B186: 1.69291091 | C186: 2.153763056 | D186: 288.666687 | E186: 101.6627731 | F186: 101.4262466 | G186: 0 | H186: 0 | I186: 0 | J186: 192 | K186: 0 | L186: 97.80000305
A187: 100.0000153 | B187: 1.67811954 | C187: 2.176879406 | D187: 292 | E187: 101.7197495 | F187: 101.4781265 | G187: 0 | H187: 0 | I187: 0 | J187: 192 | K187: 0 | L187: 97.80000305
A188: 0 | B188: 2.07074213 | C188: 1.193703294 | D188: 210 | E188: 103.2433929 | F188: 103.1707382 | G188: 0 | H188: 0 | I188: 0 | J188: 210 | K188: 0 | L188: 101.0999985
A189: 3.333333254 | B189: 2.07473278 | C189: 1.190678239 | D189: 213.3333282 | E189: 103.250351 | F189: 103.1780624 | G189: 0 | H189: 0 | I189: 0 | J189: 210 | K189: 0 | L189: 101.0999985
A190: 6.666666508 | B190: 2.078688622 | C190: 1.187694669 | D190: 216.6666718 | E190: 103.2572784 | F190: 103.1853561 | G190: 0 | H190: 0 | I190: 0 | J190: 210 | K190: 0 | L190: 101.0999985
A191: 10 | B191: 2.082609653 | C191: 1.184751987 | D191: 220 | E191: 103.2641754 | F191: 103.1926117 | G191: 0 | H191: 0 | I191: 0 | J191: 210 | K191: 0 | L191: 101.0999985
A192: 13.33333302 | B192: 2.086496115 | C192: 1.181849718 | D192: 223.3333282 | E192: 103.2710495 | F192: 103.1998291 | G192: 0 | H192: 0 | I192: 0 | J192: 210 | K192: 0 | L192: 101.0999985
A193: 16.66666603 | B193: 2.090348482 | C193: 1.178986907 | D193: 226.6666718 | E193: 103.2778854 | F193: 103.207016 | G193: 0 | H193: 0 | I193: 0 | J193: 210 | K193: 0 | L193: 101.0999985
A194: 20 | B194: 2.094167233 | C194: 1.17616272 | D194: 230 | E194: 103.2846985 | F194: 103.2141647 | G194: 0 | H194: 0 | I194: 0 | J194: 210 | K194: 0 | L194: 101.0999985
A195: 23.33333397 | B195: 2.097951889 | C195: 1.173377037 | D195: 233.3333282 | E195: 103.2914886 | F195: 103.221283 | G195: 0 | H195: 0 | I195: 0 | J195: 210 | K195: 0 | L195: 101.0999985
A196: 26.66666794 | B196: 2.101703644 | C196: 1.170628548 | D196: 236.6666718 | E196: 103.2982407 | F196: 103.2283707 | G196: 0 | H196: 0 | I196: 0 | J196: 210 | K196: 0 | L196: 101.0999985
A197: 30.00000191 | B197: 2.105422258 | C197: 1.167917013 | D197: 240 | E197: 103.3049698 | F197: 103.2354202 | G197: 0 | H197: 0 | I197: 0 | J197: 210 | K197: 0 | L197: 101.0999985
A198: 33.33333588 | B198: 2.109108448 | C198: 1.16524148 | D198: 243.3333435 | E198: 103.311676 | F198: 103.2424393 | G198: 0 | H198: 0 | I198: 0 | J198: 210 | K198: 0 | L198: 101.0999985
A199: 36.66666794 | B199: 2.112762213 | C199: 1.16260159 | D199: 246.6666718 | E199: 103.3183441 | F199: 103.2494278 | G199: 0 | H199: 0 | I199: 0 | J199: 210 | K199: 0 | L199: 101.0999985
A200: 40 | B200: 2.116383553 | C200: 1.159996986 | D200: 250 | E200: 103.3249893 | F200: 103.2563782 | G200: 0 | H200: 0 | I200: 0 | J200: 210 | K200: 0 | L200: 101.0999985
... 18 more rows
